bitfinex-derivatives/quotes_BTCF0:USTF0_20250827
["timestamp","ask_amount","ask_price","bid_price","bid_amount"]
[1756308963057,0.60598365,111720.0,111710.0,0.36367988]
[1756308963248,0.96598365,111720.0,111710.0,0.00287988]
[1756308963654,1.32678365,111720.0,111710.0,0.00287988]
[1756308964048,2.44062365,111720.0,111710.0,0.00287988]
[1756308965655,2.51243166,111720.0,111710.0,0.00287988]
[1756308966058,1.31339158,111720.0,111710.0,0.36367988]
[1756308966456,0.13959158,111720.0,111710.0,0.00287988]
[1756308966652,1.01678365,111720.0,111710.0,0.00287988]
[1756308966955,1.27678365,111720.0,111710.0,0.00287988]
[1756308968251,1.52678365,111720.0,111710.0,0.00287988]
[1756308968656,1.01039158,111720.0,111710.0,0.00287988]
[1756308968861,1.52678365,111720.0,111710.0,0.00287988]
[1756308969050,1.01039158,111720.0,111710.0,0.00287988]
[1756308969255,2.39054365,111720.0,111710.0,0.00287988]
[1756308970159,2.46361874,111720.0,111710.0,0.00287988]
[1756308970358,2.21357874,111720.0,111710.0,0.00287988]
[1756308970760,1.34985874,111720.0,111710.0,0.00287988]
[1756308971066,1.85277874,111720.0,111710.0,0.00287988]
[1756308971864,2.21357874,111720.0,111710.0,0.00287988]
[1756308972059,1.34985874,111720.0,111710.0,0.00287988]
[1756308972563,2.21357874,111720.0,111710.0,0.00287988]
[1756308976566,2.36193874,111720.0,111710.0,0.00287988]
[1756308976959,2.36193874,111720.0,111710.0,0.00291988]
[1756308977358,2.00105874,111720.0,111710.0,0.00291988]
[1756308979369,2.28628617,111720.0,111710.0,0.00291988]
[1756308980968,2.72710567,111720.0,111710.0,0.00291988]
[1756308984478,2.72710567,111720.0,111710.0,8e-08]
[1756308985477,2.72686567,111720.0,111710.0,8e-08]
[1756308986582,2.97686567,111720.0,111710.0,8e-08]
[1756308986882,0.089503,111710.0,111700.0,8e-08]
[1756308987175,1.2311225,111710.0,111700.0,8e-08]
[1756308987570,1.6295225,111710.0,111700.0,8e-08]
[1756308987784,1.62960254,111710.0,111700.0,8e-08]
[1756308988077,2.49288254,111710.0,111700.0,8e-08]
[1756308988279,0.089519,111690.0,111680.0,0.01]
[1756308988480,2.112391,111690.0,111680.0,0.01]
[1756308988782,2.5532105,111690.0,111680.0,1e-07]
[1756308988980,2.0883305,111690.0,111680.0,1e-07]
[1756308989283,2.260751,111690.0,111680.0,1e-07]
[1756308989976,2.510751,111690.0,111680.0,0.0010001]
[1756308991283,2.510791,111690.0,111680.0,0.0010001]
[1756308991486,2.510711,111690.0,111680.0,0.0010001]
[1756308991784,2.511711,111690.0,111680.0,1e-07]
[1756308992486,1.648511,111690.0,111680.0,1e-07]
[1756308992675,2.511711,111690.0,111680.0,1e-07]
[1756308995890,1.30873987,111690.0,111680.0,1e-07]
[1756308996080,2.17185987,111690.0,111680.0,1e-07]
[1756308998280,2.17181987,111690.0,111680.0,1e-07]
[1756308998485,1.73100037,111690.0,111680.0,1e-07]
[1756308998682,2.17177987,111690.0,111680.0,1e-07]
[1756308999188,2.17181987,111690.0,111680.0,1e-07]
[1756308999381,2.17168155,111690.0,111680.0,1e-07]
[1756309000182,2.17160155,111690.0,111680.0,1e-07]
[1756309001390,1.30860155,111690.0,111680.0,1e-07]
[1756309001591,2.17156155,111690.0,111680.0,1e-07]
[1756309003377,2.17160155,111690.0,111680.0,1e-07]
[1756309003583,0.089543,111660.0,111650.0,0.43245936]
[1756309003785,0.5303625,111660.0,111650.0,0.35989002]
[1756309004187,0.3516239,111660.0,111650.0,0.35989002]
[1756309004389,0.089543,111660.0,111650.0,0.35989002]
[1756309004690,0.09867397,111660.0,111650.0,0.35989002]
[1756309004888,0.09867397,111660.0,111650.0,0.36089002]
[1756309005088,0.09867397,111660.0,111650.0,0.36189002]
[1756309005490,0.089543,111660.0,111650.0,0.36189002]
[1756309006087,0.09863018,111660.0,111650.0,0.91190871]
[1756309006485,0.09872254,111660.0,111650.0,0.91190871]
[1756309013588,0.09872254,111660.0,111650.0,0.47108921]
[1756309013787,0.09872254,111660.0,111650.0,2.02434871]
[1756309013995,9.236e-05,111660.0,111650.0,2.02434871]
[1756309016594,9.236e-05,111660.0,111650.0,2.02422871]
[1756309016896,9.236e-05,111660.0,111650.0,2.02418871]
[1756309017192,0.08963536,111660.0,111650.0,2.02418871]
[1756309017592,0.08963536,111660.0,111650.0,2.02414871]
[1756309018890,0.07507877,111660.0,111650.0,2.02414871]
[1756309019591,0.07507877,111660.0,111650.0,2.02410871]
[1756309019797,0.07514274,111660.0,111650.0,2.02410871]
[1756309020184,6.397e-05,111660.0,111650.0,2.18478147]
[1756309021100,0.10797447,111680.0,111670.0,0.089535]
[1756309021397,0.01844147,111680.0,111670.0,2.1140745]
[1756309022192,0.0185197,111680.0,111670.0,2.1140745]
[1756309022596,7.823e-05,111680.0,111670.0,2.38384062]
[1756309022897,7.823e-05,111680.0,111670.0,1.52172062]
[1756309023094,0.0895191,111690.0,111680.0,0.089527]
[1756309023295,0.0895191,111690.0,111680.0,0.8911465]
[1756309023500,0.09865194,111700.0,111690.0,0.089519]
[1756309023800,0.09865194,111700.0,111690.0,1.7530585]
[1756309023993,0.09873981,111700.0,111690.0,0.8911385]
[1756309024297,8.787e-05,111700.0,111690.0,1.77255265]
[1756309024494,8.787e-05,111700.0,111690.0,2.02255265]
[1756309024696,0.00911566,111720.0,111710.0,0.089503]
[1756309024897,0.0894987,111720.0,111710.0,2.1137225]
[1756309025490,0.0894987,111720.0,111710.0,2.1136825]
[1756309025687,0.53937562,111720.0,111710.0,1.22256]
[1756309025887,0.089503,111710.0,111700.0,1.22252]
[1756309026091,0.5303225,111710.0,111700.0,0.3608]
[1756309026300,0.7803225,111710.0,111700.0,0.3608]
[1756309027001,0.7793225,111710.0,111700.0,0.3608]
[1756309027394,0.7853225,111710.0,111700.0,0.3618]
[1756309027589,1.1653225,111710.0,111700.0,0.3618]
[1756309027996,1.1693225,111710.0,111700.0,0.3628]
[1756309029399,0.348503,111710.0,111700.0,0.452311]
[1756309029705,0.098503,111710.0,111700.0,0.452311]
[1756309029905,0.098503,111710.0,111700.0,0.8931305]
[1756309030103,0.098503,111710.0,111700.0,1.1431305]
[1756309030104,0.099503,111710.0,111700.0,1.1431305]
[1756309030403,0.01,111710.0,111700.0,1.1431305]
[1756309030602,0.099503,111710.0,111700.0,0.6128]
[1756309030805,0.099503,111710.0,111700.0,1.0536195]
[1756309031000,0.5403225,111710.0,111700.0,0.3628]
[1756309031206,0.099503,111710.0,111700.0,1.22424]
[1756309031399,0.099503,111710.0,111700.0,1.22416]
[1756309031603,0.099503,111710.0,111700.0,1.313671]
[1756309031798,0.5403225,111710.0,111700.0,1.22416]
[1756309032200,0.7903225,111710.0,111700.0,1.22412]
[1756309034102,1.1203225,111710.0,111700.0,0.3628]
[1756309036506,0.7903225,111710.0,111700.0,0.3628]
[1756309037405,0.7903225,111710.0,111700.0,0.452311]
[1756309037611,0.7903225,111710.0,111700.0,0.96490127]
[1756309037612,0.099503,111710.0,111700.0,0.96490127]
[1756309037799,0.01,111710.0,111700.0,1.21490127]
[1756309038509,0.099503,111710.0,111700.0,1.21490127]
[1756309039615,0.099503,111710.0,111700.0,1.21494127]
[1756309039816,0.099503,111710.0,111700.0,2.07586127]
[1756309040212,0.01,111710.0,111700.0,2.07586127]
[1756309041618,0.10738494,111750.0,111710.0,0.19874817]
[1756309041912,0.4564076,111750.0,111740.0,0.3608]
[1756309042118,0.8972271,111750.0,111740.0,1.22148]
[1756309043418,0.9012271,111750.0,111740.0,1.22248]
[1756309043928,0.44250066,111750.0,111740.0,1.22248]
[1756309044215,0.88232016,111750.0,111740.0,1.22148]
[1756309045011,0.88732016,111750.0,111740.0,1.22248]
[1756309045519,0.88632016,111750.0,111740.0,1.22248]
[1756309045720,0.88432016,111750.0,111740.0,1.22248]
[1756309045907,0.88432016,111750.0,111740.0,1.22224]
[1756309046714,0.88332016,111750.0,111740.0,0.3618]
[1756309048120,0.88232016,111750.0,111740.0,0.3608]
[1756309048622,0.87932016,111750.0,111740.0,0.3608]
[1756309048821,0.88332016,111750.0,111740.0,0.3618]
[1756309049229,0.44250066,111750.0,111740.0,0.3618]
[1756309049429,0.88332016,111750.0,111740.0,0.3618]
[1756309050528,0.88332016,111750.0,111740.0,0.001]
[1756309050821,1.13332016,111750.0,111740.0,0.001]
[1756309051028,1.99344016,111750.0,111740.0,0.001]
[1756309051321,0.88332016,111750.0,111740.0,0.3618]
[1756309052930,1.13332016,111750.0,111740.0,0.3618]
[1756309053129,1.13332016,111750.0,111740.0,0.001]
[1756309053329,1.15160833,111750.0,111740.0,0.001]
[1756309054033,1.51240833,111750.0,111740.0,0.001]
[1756309054630,2.37228833,111750.0,111740.0,0.001]
[1756309056533,2.52098833,111750.0,111740.0,0.001]
[1756309057530,2.52098833,111750.0,111740.0,1e-07]
[1756309057835,0.0894949,111720.0,111710.0,0.38054217]
[1756309058136,0.8603144,111720.0,111710.0,0.39054217]
[1756309058936,0.8703144,111720.0,111710.0,0.39054217]
[1756309059136,0.8703144,111720.0,111710.0,0.39154217]
[1756309060436,0.8703144,111720.0,111710.0,0.011]
[1756309061429,1.3111339,111720.0,111710.0,0.001]
[1756309061739,1.9219339,111720.0,111710.0,0.001]
[1756309062130,0.089503,111710.0,111700.0,4e-05]
[1756309062331,1.7498825,111710.0,111700.0,0.08004]
[1756309062936,1.81987833,111710.0,111700.0,0.08004]
[1756309063727,0.96031833,111710.0,111700.0,0.08004]
[1756309063930,1.3897625,111710.0,111700.0,0.44084]
[1756309064126,0.089503,111710.0,111700.0,0.780351]
[1756309064325,0.089503,111710.0,111700.0,1.2211705]
[1756309064933,0.089503,111710.0,111700.0,0.780351]
[1756309065333,0.089503,111710.0,111700.0,0.781351]
[1756309066541,0.089503,111710.0,111700.0,0.69184]
[1756309067142,0.089503,111710.0,111700.0,0.76469918]
[1756309067342,0.5303225,111710.0,111700.0,0.76469918]
[1756309067543,0.089503,111710.0,111700.0,1.29502968]
[1756309068049,0.089503,111710.0,111700.0,2.15430968]
[1756309068242,0.0895018,111720.0,111710.0,0.0895002]
[1756309068448,0.0895018,111720.0,111710.0,1.1411197]
[1756309069442,0.0915018,111720.0,111710.0,1.1411197]
[1756309069738,0.0915018,111720.0,111710.0,1.16140896]
[1756309069946,0.0915018,111720.0,111710.0,0.72058946]
[1756309070143,0.0915018,111720.0,111710.0,1.16140896]
[1756309070847,0.45928166,111730.0,111710.0,1.16140896]
[1756309071049,0.75928166,111730.0,111720.0,0.3608]
[1756309071347,0.84876856,111730.0,111720.0,0.3608]
[1756309071549,0.40794906,111730.0,111720.0,0.8911145]
[1756309071747,0.40794906,111730.0,111720.0,0.3608]
[1756309072048,0.40994906,111730.0,111720.0,0.8016195]
[1756309072249,0.40994906,111730.0,111720.0,0.4502949]
[1756309072445,0.40794906,111730.0,111720.0,0.4502949]
[1756309072646,0.41094906,111730.0,111720.0,0.4502949]
[1756309072847,0.41194906,111730.0,111720.0,0.3608]
[1756309073246,0.41194906,111730.0,111720.0,1.309255]
[1756309073950,0.85276856,111730.0,111720.0,0.3608]
[1756309076449,0.0894949,111720.0,111710.0,0.38108926]
[1756309076650,0.8903144,111720.0,111710.0,0.38108926]
[1756309077249,0.5803144,111720.0,111710.0,0.38108926]
[1756309077557,0.8403144,111720.0,111710.0,0.38108926]
[1756309078154,0.8413144,111720.0,111710.0,0.38108926]
[1756309079850,0.84140917,111720.0,111710.0,0.38108926]
[1756309080049,0.8413144,111720.0,111710.0,0.38108926]
[1756309080845,1.0913144,111720.0,111710.0,0.38108926]
[1756309081249,1.09138389,111720.0,111710.0,0.38108926]
[1756309081452,2.09856857,111720.0,111710.0,0.38108926]
[1756309081761,1.9497544,111720.0,111710.0,0.38108926]
[1756309082353,1.0913144,111720.0,111710.0,0.38108926]
[1756309082659,1.94978289,111720.0,111710.0,0.38108926]
[1756309082849,1.9496744,111720.0,111710.0,0.38108926]
[1756309083050,1.94975409,111720.0,111710.0,0.38108926]
[1756309083251,1.45218308,111720.0,111710.0,8.926e-05]
[1756309083453,2.31046367,111720.0,111710.0,8.926e-05]
[1756309083758,2.3103944,111720.0,111710.0,8.926e-05]
[1756309083959,1.0112949,111720.0,111710.0,8.926e-05]
[1756309084159,2.3103944,111720.0,111710.0,8.926e-05]
[1756309084557,2.3103544,111720.0,111710.0,8.926e-05]
[1756309085257,2.06040132,111720.0,111710.0,8.926e-05]
[1756309085460,0.7612949,111720.0,111710.0,8.926e-05]
[1756309085649,0.9721144,111720.0,111710.0,8.926e-05]
[1756309086163,0.5312949,111720.0,111710.0,0.53041176]
[1756309086359,0.5312949,111720.0,111710.0,0.08959226]
[1756309086858,0.1704949,111720.0,111710.0,1.14121176]
[1756309087061,0.1704949,111720.0,111710.0,1.99929176]
[1756309087257,0.0904949,111720.0,111710.0,1.99929176]
[1756309087568,0.001,111720.0,111710.0,1.99929176]
[1756309087766,0.5313145,111720.0,111710.0,0.63088926]
[1756309088062,0.5313145,111720.0,111710.0,1.12812926]
[1756309088461,0.5313145,111720.0,111710.0,0.02008926]
[1756309088662,1.27997356,111720.0,111710.0,0.02008926]
[1756309089267,1.27997356,111720.0,111710.0,8.926e-05]
[1756309090563,2.13793356,111720.0,111710.0,8.926e-05]
[1756309093961,0.089503,111710.0,111700.0,0.07289918]
[1756309094166,1.2611225,111710.0,111700.0,0.24289918]
[1756309095158,1.2611225,111710.0,111700.0,0.24389918]
[1756309095363,1.2611225,111710.0,111700.0,0.24489918]
[1756309100466,1.7485625,111710.0,111700.0,0.24489918]
[1756309100668,1.7484825,111710.0,111700.0,0.24489918]
[1756309101175,0.8911225,111710.0,111700.0,0.24489918]
[1756309101368,0.450303,111710.0,111700.0,0.24489918]
[1756309101569,1.307623,111710.0,111700.0,0.24489918]
[1756309101871,1.7484425,111710.0,111700.0,0.24489918]
[1756309102774,0.8911225,111710.0,111700.0,0.24489918]
[1756309103169,0.5303225,111710.0,111700.0,0.24489918]
[1756309107275,0.8403225,111710.0,111700.0,0.24489918]
[1756309107971,0.84042699,111710.0,111700.0,0.24489918]
[1756309108169,0.84039848,111710.0,111700.0,0.24489918]
[1756309108373,0.84038727,111710.0,111700.0,0.24489918]
[1756309108675,0.8403225,111710.0,111700.0,0.24489918]
[1756309109278,1.2011225,111710.0,111700.0,0.24489918]
[1756309110975,0.8911225,111710.0,111700.0,0.24989918]
[1756309112079,1.7479225,111710.0,111700.0,0.24989918]
[1756309112273,2.1079225,111710.0,111700.0,0.24989918]
[1756309113678,2.1079225,111710.0,111700.0,0.17704]
[1756309117072,1.666863,111710.0,111700.0,0.17704]
[1756309117278,2.1076825,111710.0,111700.0,0.17704]
[1756309118078,0.450303,111710.0,111700.0,0.17704]
[1756309118377,0.8911225,111710.0,111700.0,0.17704]
[1756309118772,0.5303225,111710.0,111700.0,0.17704]
[1756309119079,0.5303225,111710.0,111700.0,0.53784]
[1756309119479,0.5303225,111710.0,111700.0,0.17704]
[1756309119679,0.5303225,111710.0,111700.0,0.53784]
[1756309121575,0.089503,111710.0,111700.0,0.69990934]
[1756309121784,0.089503,111710.0,111700.0,1.14072884]
[1756309121981,0.089503,111710.0,111700.0,0.69990934]
[1756309122181,0.089503,111710.0,111700.0,1.14072884]
[1756309123671,0.089503,111710.0,111700.0,2.24696884]
[1756309124480,0.10733174,111720.0,111710.0,0.089503]
[1756309124680,0.39733174,111720.0,111710.0,0.5303225]
[1756309124882,0.089503,111710.0,111700.0,0.52990684]
[1756309125186,0.089503,111710.0,111700.0,2.06676634]
[1756309125377,0.409503,111710.0,111700.0,2.06676634]
[1756309125782,0.089503,111710.0,111700.0,2.06676634]
[1756309126283,0.089503,111710.0,111700.0,2.06576634]
[1756309126686,0.449503,111710.0,111700.0,1.62494684]
[1756309127479,0.449503,111710.0,111700.0,2.06676634]
[1756309128180,0.449503,111710.0,111700.0,0.76990684]
[1756309128376,0.449503,111710.0,111700.0,1.62570684]
[1756309128794,0.54815084,111720.0,111710.0,0.089503]
[1756309129087,0.42733134,111720.0,111710.0,0.089503]
[1756309131084,0.42843199,111720.0,111710.0,0.089503]
[1756309131290,0.42833134,111720.0,111710.0,0.089503]
[1756309131988,0.42833134,111720.0,111710.0,0.8911225]
[1756309132388,0.42833134,111720.0,111710.0,0.450303]
[1756309133386,0.10832604,111720.0,111710.0,0.9211225]
[1756309133688,0.20832604,111720.0,111710.0,0.9211225]
[1756309134590,0.20832604,111720.0,111710.0,1.24628]
[1756309134891,0.54914554,111720.0,111710.0,1.335783]
[1756309135285,0.54914554,111720.0,111710.0,1.335703]
[1756309135480,0.54914554,111720.0,111710.0,1.335623]
[1756309135683,0.54914554,111720.0,111710.0,0.03]
[1756309135977,0.54914554,111720.0,111710.0,0.88532]
[1756309136184,0.54914554,111720.0,111710.0,1.335623]
[1756309136389,0.54914554,111720.0,111710.0,0.480303]
[1756309136590,0.10832604,111720.0,111710.0,1.335583]
[1756309136792,0.54914554,111720.0,111710.0,1.335583]
[1756309137584,0.10832604,111720.0,111710.0,1.335583]
[1756309138182,0.10832604,111720.0,111710.0,1.7764025]
[1756309138183,0.01883114,111720.0,111710.0,1.7764025]
[1756309138591,0.001,111720.0,111710.0,2.33657094]
[1756309138980,0.001,111720.0,111710.0,2.4972437]
[1756309139689,0.00108601,111720.0,111710.0,2.4980037]
[1756309139889,0.0894913,111730.0,111720.0,0.089495]
[1756309140092,0.1594913,111730.0,111720.0,0.8911145]
[1756309140487,0.0894845,111740.0,111730.0,0.0894869]
[1756309140687,0.4494845,111740.0,111730.0,0.9644027]
[1756309140882,0.4494845,111740.0,111730.0,0.9643627]
[1756309141494,0.890304,111740.0,111730.0,0.9643627]
[1756309141685,0.890304,111740.0,111730.0,0.8748758]
[1756309142495,0.890304,111740.0,111730.0,0.0199158]
[1756309142794,0.892304,111740.0,111730.0,0.0199158]
[1756309143294,0.894304,111740.0,111730.0,0.0199158]
[1756309143494,0.4524845,111740.0,111730.0,0.0199158]
[1756309143794,0.893304,111740.0,111730.0,0.0199158]
[1756309143996,0.894304,111740.0,111730.0,0.0199158]
[1756309144587,0.893304,111740.0,111730.0,0.0199158]
[1756309144986,0.4524845,111740.0,111730.0,0.0199158]
[1756309145189,0.892304,111740.0,111730.0,0.0199158]
[1756309145386,0.894304,111740.0,111730.0,0.0199158]
[1756309146791,0.892304,111740.0,111730.0,0.0199158]
[1756309146995,0.895304,111740.0,111730.0,0.0199158]
[1756309147188,0.894304,111740.0,111730.0,0.0199158]
[1756309147389,0.893304,111740.0,111730.0,0.0199158]
[1756309147598,0.893304,111740.0,111730.0,0.1094028]
[1756309148591,0.892304,111740.0,111730.0,0.1094028]
[1756309148796,0.893304,111740.0,111730.0,0.1094028]
[1756309149196,0.891304,111740.0,111730.0,0.1094028]
[1756309149397,0.893304,111740.0,111730.0,0.1094028]
[1756309149597,0.893304,111740.0,111730.0,0.9638828]
[1756309149994,0.893304,111740.0,111730.0,0.0199158]
[1756309150195,0.893304,111740.0,111730.0,0.8742358]
[1756309150395,0.4524845,111740.0,111730.0,0.8742358]
[1756309150599,0.893304,111740.0,111730.0,0.8742358]
[1756309151400,0.4524845,111740.0,111730.0,0.0199158]
[1756309151800,0.893304,111740.0,111730.0,0.0199158]
[1756309152194,0.89339687,111740.0,111730.0,0.0199158]
[1756309152395,0.89338935,111740.0,111730.0,0.0199158]
[1756309152602,0.893304,111740.0,111730.0,0.0199158]
[1756309156004,0.89336925,111740.0,111730.0,0.0199158]
[1756309156193,0.89338892,111740.0,111730.0,0.0199158]
[1756309156399,0.893304,111740.0,111730.0,0.0199158]
[1756309158603,0.4524845,111740.0,111730.0,0.0199158]
[1756309158806,0.893304,111740.0,111730.0,0.0199158]
[1756309159410,0.4524845,111740.0,111730.0,0.0199158]
[1756309159609,0.4524845,111740.0,111730.0,0.1094028]
[1756309160107,0.4524845,111740.0,111730.0,0.5502223]
[1756309160304,0.363,111740.0,111730.0,0.9110223]
[1756309160499,0.073,111740.0,111730.0,1.5310223]
[1756309160699,0.003,111740.0,111730.0,1.5310223]
[1756309161508,0.092479,111740.0,111730.0,1.6937628]
[1756309161809,0.091479,111740.0,111730.0,1.6937628]
[1756309162008,0.091479,111740.0,111730.0,1.6947628]
[1756309162208,0.002,111740.0,111730.0,2.1355823]
[1756309162417,0.0914789,111740.0,111730.0,2.1355823]
[1756309162714,0.0924789,111740.0,111730.0,2.1345823]
[1756309163206,0.0904789,111740.0,111730.0,2.1355823]
[1756309163412,0.0904789,111740.0,111730.0,2.1354623]
[1756309163713,0.0894789,111740.0,111730.0,1.2810223]
[1756309164010,0.0914789,111740.0,111730.0,2.1344623]
[1756309165606,0.002,111740.0,111730.0,2.1344623]
[1756309165805,0.003,111740.0,111730.0,2.1344623]
[1756309166013,0.0924789,111740.0,111730.0,2.4952623]
[1756309166510,0.0914789,111740.0,111730.0,2.4952623]
[1756309167010,0.0894789,111740.0,111730.0,2.4952623]
[1756309167203,0.0904789,111740.0,111730.0,2.4952623]
[1756309167610,0.09849856,111750.0,111740.0,0.0894789]
[1756309167810,0.44849856,111750.0,111740.0,1.1810984]
[1756309168306,0.44857307,111750.0,111740.0,1.1810984]
[1756309168512,0.35,111750.0,111740.0,1.1810984]
[1756309168812,0.10783658,111770.0,111760.0,0.10946039]
[1756309169112,0.42783658,111770.0,111760.0,1.71331989]
[1756309169508,0.15783658,111770.0,111760.0,2.07411989]
[1756309169708,0.01837878,111770.0,111760.0,1.78411989]
[1756309169907,0.01837878,111770.0,111760.0,2.14411989]
[1756309170407,0.0894444,111790.0,111780.0,0.0894469]
[1756309170605,0.40834791,111790.0,111780.0,1.79359106]
[1756309170800,0.09834241,111790.0,111780.0,1.79359106]
[1756309171108,0.09834241,111790.0,111780.0,0.56985156]
[1756309171310,0.09834241,111790.0,111780.0,1.33324466]
[1756309171508,0.09834241,111790.0,111780.0,0.48040466]
[1756309171711,0.10334241,111790.0,111780.0,0.48140466]
[1756309171908,0.10334241,111790.0,111780.0,0.71140466]
[1756309172109,0.10334241,111790.0,111780.0,1.56420466]
[1756309172706,0.10634241,111790.0,111780.0,1.63727645]
[1756309173211,0.10434241,111790.0,111780.0,1.63627645]
[1756309173410,0.10134241,111790.0,111780.0,1.63627645]
[1756309173617,0.10334241,111790.0,111780.0,1.63627645]
[1756309173815,0.10034241,111790.0,111780.0,1.63627645]
[1756309174013,0.10434241,111790.0,111780.0,1.63627645]
[1756309174414,0.10434241,111790.0,111780.0,2.16654285]
[1756309174913,0.10434241,111790.0,111780.0,2.16634285]
[1756309175117,0.10434241,111790.0,111780.0,1.22429595]
[1756309175314,0.10434241,111790.0,111780.0,1.63599645]
[1756309175513,0.10434241,111790.0,111780.0,1.72544335]
[1756309175709,0.10434241,111790.0,111780.0,2.16626285]
[1756309176316,0.10334241,111790.0,111780.0,2.16626285]
[1756309176515,0.10234241,111790.0,111780.0,2.16626285]
[1756309177015,0.10234241,111790.0,111780.0,1.22429595]
[1756309177213,0.10234241,111790.0,111780.0,1.63579645]
[1756309178217,0.10234241,111790.0,111780.0,0.78347645]
[1756309178417,0.10234241,111790.0,111780.0,1.63579645]
[1756309179519,0.10234241,111790.0,111780.0,1.72524335]
[1756309179727,0.0934389,111790.0,111780.0,1.72524335]
[1756309180015,0.004,111790.0,111780.0,2.16606285]
[1756309180215,0.004,111790.0,111780.0,2.41606285]
[1756309180619,0.004,111790.0,111780.0,1.97524335]
[1756309180812,0.004,111790.0,111780.0,2.41606285]
[1756309181413,0.002,111790.0,111780.0,2.41606285]
[1756309182224,0.002,111790.0,111780.0,1.97524335]
[1756309182524,0.001,111790.0,111780.0,2.41606285]
[1756309183433,0.0904389,111790.0,111780.0,1.56374285]
[1756309183636,0.001,111790.0,111780.0,2.41570285]
[1756309184731,0.001,111790.0,111780.0,2.41554285]
[1756309185835,0.001,111790.0,111780.0,2.16554285]
[1756309186136,0.0904389,111790.0,111780.0,2.16546285]
[1756309186931,0.0904389,111790.0,111780.0,1.31374285]
[1756309187129,0.0904389,111790.0,111780.0,2.07593595]
[1756309187836,0.0904389,111790.0,111780.0,1.63511645]
[1756309188236,0.5312584,111790.0,111780.0,1.63511645]
[1756309188931,0.0904389,111790.0,111780.0,2.16538285]
[1756309189634,0.0904389,111790.0,111780.0,1.22429595]
[1756309189940,0.0904389,111790.0,111780.0,1.63503645]
[1756309190640,0.0904389,111790.0,111780.0,1.72448335]
[1756309190936,0.001,111790.0,111780.0,2.16530285]
[1756309192336,0.0904389,111790.0,111780.0,2.16530285]
[1756309192733,0.0904389,111790.0,111780.0,1.72428335]
[1756309192935,0.0904389,111790.0,111780.0,0.78347645]
[1756309193136,0.0904389,111790.0,111780.0,1.63479645]
[1756309193331,0.7812584,111790.0,111780.0,1.63475645]
[1756309193638,0.5312584,111790.0,111780.0,0.78347645]
[1756309193839,0.7812584,111790.0,111780.0,0.78347645]
[1756309194043,0.59648393,111790.0,111780.0,1.63471645]
[1756309194238,0.68592283,111790.0,111780.0,0.78347645]
[1756309194438,0.68592283,111790.0,111780.0,1.27391645]
[1756309195334,1.03592283,111790.0,111780.0,0.42267645]
[1756309195535,1.39672283,111790.0,111780.0,0.40307179]
[1756309195736,1.41471266,111790.0,111780.0,0.40307179]
[1756309196336,1.07822873,111790.0,111780.0,0.40307179]
[1756309196531,1.29904823,111790.0,111780.0,0.40307179]
[1756309196736,1.26904823,111790.0,111780.0,0.40307179]
[1756309196936,1.26912538,111790.0,111780.0,0.40307179]
[1756309197137,1.26912516,111790.0,111780.0,0.40307179]
[1756309197337,1.26915751,111790.0,111780.0,0.40307179]
[1756309197542,1.26904823,111790.0,111780.0,0.40307179]
[1756309199844,1.51904823,111790.0,111780.0,0.33]
[1756309200846,1.51904823,111790.0,111760.0,0.01999749]
[1756309200847,0.0894549,111770.0,111760.0,0.01999749]
[1756309201144,1.2310744,111770.0,111760.0,0.36999749]
[1756309201538,1.4810744,111770.0,111760.0,0.36999749]
[1756309201744,1.8818744,111770.0,111760.0,0.36999749]
[1756309202738,1.8828744,111770.0,111760.0,0.36999749]
[1756309202944,1.8838744,111770.0,111760.0,0.36999749]
[1756309203445,1.8848744,111770.0,111760.0,0.36999749]
[1756309204044,1.5848744,111770.0,111760.0,0.36999749]
[1756309204244,0.8940549,111770.0,111760.0,0.36999749]
[1756309204549,0.1724549,111770.0,111760.0,2.00111989]
[1756309204738,0.083,111770.0,111760.0,2.36191989]
[1756309205048,0.003,111770.0,111760.0,2.36191989]
[1756309206150,0.0894549,111770.0,111760.0,2.36291989]
[1756309206647,0.0894549,111770.0,111760.0,2.36191989]
[1756309206849,0.0894549,111770.0,111760.0,2.36291989]
[1756309207142,0.0894549,111770.0,111760.0,1.92210039]
[1756309207346,0.0894549,111770.0,111760.0,2.43797235]
[1756309207743,0.0894527,111780.0,111770.0,0.0894548]
[1756309207943,0.4294527,111780.0,111770.0,0.3794548]
[1756309208140,0.4294527,111780.0,111770.0,1.25612676]
[1756309208344,0.4294527,111780.0,111770.0,1.50612676]
[1756309208539,0.10743333,111790.0,111780.0,0.0894469]
[1756309208744,0.25743333,111790.0,111780.0,1.49599886]
[1756309209848,0.26043333,111790.0,111780.0,1.49599886]
[1756309210846,0.17298983,111790.0,111780.0,2.37679886]
[1756309211147,0.02298983,111790.0,111780.0,2.39681328]
[1756309211450,0.02098983,111790.0,111780.0,2.39681328]
[1756309211649,0.11142873,111790.0,111780.0,2.39681328]
[1756309212449,0.10742873,111790.0,111780.0,2.39665328]
[1756309212645,0.10742873,111790.0,111780.0,2.39661328]
[1756309213843,0.10951617,111790.0,111780.0,2.39657328]
[1756309214041,0.11042873,111790.0,111780.0,2.39657328]
[1756309214242,0.11050197,111790.0,111780.0,2.39657328]
[1756309214438,0.1105413,111790.0,111780.0,2.39657328]
[1756309214638,0.109496,111790.0,111780.0,2.39657328]
[1756309214851,0.10954029,111790.0,111780.0,2.39657328]
[1756309215150,0.10942873,111790.0,111780.0,2.39657328]
[1756309215450,0.1075312,111790.0,111780.0,2.39657328]
[1756309215646,0.10751934,111790.0,111780.0,1.54613328]
[1756309215838,0.10752797,111790.0,111780.0,1.54109442]
[1756309216038,0.10742873,111790.0,111780.0,1.54109442]
[1756309216248,0.10742873,111790.0,111780.0,1.54105442]
[1756309216644,0.08952208,111790.0,111780.0,1.63050122]
[1756309216846,0.08952208,111790.0,111780.0,2.14637318]
[1756309216847,0.0894389,111790.0,111780.0,2.14637318]
[1756309217150,0.0914389,111790.0,111780.0,2.14637318]
[1756309217446,0.0914389,111790.0,111780.0,1.54101442]
[1756309217653,0.0914389,111790.0,111780.0,1.18021442]
[1756309217851,0.0924389,111790.0,111780.0,1.18021442]
[1756309218446,0.0914389,111790.0,111780.0,1.18021442]
[1756309218645,0.0924389,111790.0,111780.0,1.18021442]
[1756309218850,0.0924389,111790.0,111780.0,1.18017442]
[1756309219046,0.3404389,111790.0,111780.0,1.18017442]
[1756309219355,0.85831086,111790.0,111780.0,1.18009442]
[1756309219548,0.3424389,111790.0,111780.0,1.18009442]
[1756309221048,0.3424389,111790.0,111780.0,1.26954132]
[1756309223055,0.0924389,111790.0,111780.0,1.78541328]
[1756309223251,0.003,111790.0,111780.0,2.03541328]
[1756309223558,0.003,111790.0,111780.0,2.39621328]
[1756309224751,0.003,111790.0,111780.0,2.55688604]